Cogmind - Beta 16.1 @@@ ROGUE MODE // 2026.01.24 @ 19:25:58 Player: BlobtheGreat Result: Destroyed by D-53 Grenadier with Mini Grenade Launcher Performance ------------- Evolutions (0) 0 Regions Visited (2) 400 Robots Destroyed (25) 125 Value Destroyed (607) 607 Prototype IDs (0) 0 Alien Tech Used (0) 0 Bonus (21) 21 TOTAL SCORE: 1153 Bonus ------- Follower Combat Kills 21 Cogmind --------- Core Integrity 0/250 Matter 296/300 Energy 250/250 System Corruption 0% Temperature Cool (0) Movement Walking (120) Location -10/Mines Parts ------- > --- POWER (1) -------- Ion Engine > --- PROPULSION (2) --- Aluminum Leg Aluminum Leg > --- UTILITY (2) ------ Small Storage Unit Tractor Beam > --- WEAPON (2) ------- Light Assault Rifle Light Assault Rifle > --- INVENTORY (8) ---- Subdweller Power Source Light Treads Subdweller Monowheel High-capacity Storage Unit Seismic Detector Subdweller Laser Subdweller Machine Gun Botcube Peak State ------------ > --- POWER ------------ Subdweller Power Source > --- PROPULSION ------- Aluminum Leg Aluminum Leg > --- UTILITY ---------- Small Storage Unit Seismic Detector > --- WEAPON ----------- Small Laser Light Assault Rifle > --- INVENTORY -------- Ion Engine Light Treads High-capacity Storage Unit Seismic Detector Small Laser Subdweller Laser Subdweller Machine Gun Botcube [Rating: 9] Favorites ----------- Power Subdweller Power Source Engine Subdweller Power Source Propulsion Aluminum Leg Treads Light Treads Leg Aluminum Leg Utility Small Storage Unit Device Seismic Detector Storage Small Storage Unit Weapon Small Laser Energy Gun Small Laser Ballistic Gun Light Assault Rifle Ballistic Cannon Light Cannon Build | -11 -10 -10 ------- Run | Yrd Mat Min Slots Evolved . | . . . Power . | . . . Propulsion . | . . . Utility . | . . . Weapon . | . . . Parts Attached 21 | 7 11 3 Power 3 | 1 2 . Engine 3 | 1 2 . Core . | . . . Reactor . | . . . Propulsion 7 | 2 5 . Treads 2 | 2 . . Leg 5 | . 5 . Wheel . | . . . Hover . | . . . Flight . | . . . Utility 5 | 2 2 1 Device 3 | 1 1 1 Storage 2 | 1 1 . Processor . | . . . Hackware . | . . . Protection . | . . . Artifact . | . . . Weapon 6 | 2 2 2 Energy Gun 2 | 1 1 . Energy Cannon . | . . . Ballistic Gun 3 | 1 . 2 Ballistic Cannon 1 | . 1 . Launcher . | . . . Special Weapon . | . . . Impact Weapon . | . . . Slashing Weapon . | . . . Piercing Weapon . | . . . Special Melee Weapon . | . . . Unidentified Prototypes . | . . . Parts Lost 4 | . 3 1 Power 1 | . 1 . Propulsion 1 | . 1 . Utility 1 | . 1 . Weapon 1 | . . 1 Highest Loss Streak 2 | . 2 1 To Critical Strikes . | . . . Average Backups 6 | 3 7 7 Power . | . 1 1 Propulsion 2 | 2 2 2 Utility 1 | . 1 2 Weapon 1 | . 1 2 Tool/Special . | . . . Unused Backups 7 | . 3 4 Power . | . . . Propulsion 3 | . 2 1 Utility 1 | . . 1 Weapon 2 | . . 2 Tool/Special 1 | . 1 . Average Slot Usage (%) 96 | . 96 95 Engine 13 | . 13 14 Treads 7 | . 8 . Leg 20 | . 19 28 Device 10 | . 10 10 Storage 14 | . 14 14 Energy Gun 13 | . 14 12 Ballistic Gun 7 | . 8 3 Ballistic Cannon 6 | . 6 10 Peak Build Rating 9 | 8 9 9 Average Rating 8 | 6 8 8 On Entrance 5 | . 8 8 Avg Prop Armor Cover (%) . | . . . Naked Turns . | . . . Heaviest Build 46 | 11 46 15 Greatest Support 40 | 40 40 20 Greatest Overweight (x) 1 | . 1 . Average Overweight (x) . | . . . Largest Inventory Capacity 20 | 8 20 8 Average Capacity 10 | 7 10 8 Most Carried 10 | 8 10 8 Average Carried 8 | 4 8 8 Final Capacity 8 | 8 8 8 Final Carried 8 | 8 8 8 Class Distribution -------------------- 100% | Mutant Dominant Class ---------------- Mutant | -10/Materials Mutant | -10/Mines Resources | -11 -10 -10 ----------- Run | Yrd Mat Min Matter Collected 658 | 279 288 91 Remotely 10 | . . 10 Salvage Created 699 | 111 562 26 Parts 39 | 4 28 7 Haulers Intercepted 1 | . 1 . Recyclers Shooed 1 | . 1 . Parts Field Recycled . | . . . Retrieved Matter . | . . . Parts Self-Destructed . | . . . Prevented . | . . . Parts Restored . | . . . Kills | -11 -10 -10 ------- Run | Yrd Mat Min Combat Hostiles Destroyed 19 | . 16 3 Guns 6 | . 5 1 Cannons 13 | . 11 2 Classes Destroyed 8 | 2 6 . Tunneler 2 | 2 . . Hauler 1 | . 1 . Recycler 1 | 1 . . Operator 1 | . 1 . Watcher 1 | . 1 . Swarmer 6 | . 3 3 Grunt 11 | . 11 . Subdweller 2 | . 2 . Best Kill Streak 2 | 2 2 2 Combat Bots Only 2 | . 2 2 Max Kills in Single Turn 1 | 1 1 1 Gunslinging . | . . . Exploded . | . . . Melee . | . . . Uniques/NPCs Destroyed . | . . . Combat | -11 -10 -10 -------- Run | Yrd Mat Min Hostile Shots Fired 118 | . 88 30 Missed 32 | . 23 9 Hits 86 | . 65 21 Projectile 86 | . 65 21 AOE 4 | . . 4 Critical Strikes 2 | . 2 . Damage Taken 1268 | . 940 328 Core 267 | . 141 126 Absorbed by Shields . | . . . Regen/Repaired (Parts) 89 | . 89 . Core Remaining (%) 100 | 100 . . Volleys Fired 95 | 9 70 16 Largest 2 | 2 2 2 Hottest 70 | 60 70 70 Shots Fired 173 | 18 123 32 Gun 114 | 18 78 18 Cannon 59 | . 45 14 Launcher . | . . . Special . | . . . Kinetic 87 | 9 60 18 Thermal 86 | 9 63 14 Explosive . | . . . Electromagnetic . | . . . Robot Hit Streak 13 | 7 13 2 Robot Miss Streak 9 | 2 4 9 Penetration Max . | . . . Secondary Targets 1 | . 1 . Max Gunslinging Chain 1 | . 1 . Shots Hit Robots 110 | 14 87 9 Core Hits 47 | 6 37 4 Critical Kills . | . . . Critical Parts Destroyed . | . . . Critical Strikes . | . . . Melee Attacks . | . . . Impact . | . . . Slashing . | . . . Piercing . | . . . Sneak Attacks . | . . . Combat Hostiles . | . . . Follow-up Attacks . | . . . Damage Inflicted 1406 | 129 1150 127 Guns 777 | 129 608 40 Cannons 623 | . 536 87 Explosions . | . . . Melee . | . . . Ramming 6 | . 6 . Kinetic 793 | 65 632 96 Thermal 607 | 64 512 31 Explosive . | . . . Electromagnetic . | . . . Impact . | . . . Slashing . | . . . Piercing . | . . . Highest Corruption . | . . . Average Corruption . | . . . Corruption Purged . | . . . Corruption Blocked . | . . . Overload Shots . | . . . Overflow Damage . | . . . Projectiles . | . . . Explosions . | . . . Melee . | . . . Knockbacks 5 | . 3 2 Impact . | . . . Kinetic 5 | . 3 2 Secondary . | . . . Self-Inflicted Damage . | . . . Shots . | . . . Rammed 1 | . 1 . Targets Rammed 3 | . 3 . Kicked 2 | . 2 . Crushed . | . . . Highest Temperature 87 | 40 87 81 Average Temperature 26 | 14 25 34 Received Heat Transfer 291 | . 291 . Siege Activations . | . . . Martial Activations . | . . . Shielding Activations . | . . . Robots Disrupted . | . . . Combat Hostiles . | . . . Robots Corrupted . | . . . Combat Hostiles . | . . . Parts Fried . | . . . Impact Corruptions . | . . . Robots Melted . | . . . Combat Hostiles . | . . . Parts Melted 1 | . 1 . Heat Transferred 1350 | 150 1125 75 Parts Sabotaged . | . . . Parts Stolen . | . . . Parts Stripped . | . . . Power Chain Reactions . | . . . Alert | -11 -10 -10 ------- Run | Yrd Mat Min Maximum Alert Level 1 | . 1 . Low Security (%) 87 | 100 84 100 Level 1 12 | . 15 . Level 2 . | . . . Level 3 . | . . . Level 4 . | . . . Level 5 . | . . . High Security . | . . . Max Security . | . . . Peak Influence 281 | 5 281 106 Initial 106 | . . 106 Average 57 | . 58 71 Influence Increases 724 | 15 553 156 Destroy 0b10 Robot/C 400 | . 280 120 Destroy 0b10 Robot/NC 30 | 15 15 . Destroy Leader 84 | . 64 20 Allied During Kill 16 | . . 16 Successful Hack 14 | . 14 . Select Force Hacks 60 | . 60 . Lose Combat Pursuer 120 | . 120 . Influence Decreases 702 | 15 278 409 Entered New Map 169 | . . 169 Time Decay 473 | 15 268 190 Lost Part 20 | . 10 10 Lost Ally 40 | . . 40 Squads Dispatched 3 | . 3 . Investigation 3 | . 3 . Extermination . | . . . Reinforcement . | . . . Assault . | . . . Garrison . | . . . Intercept . | . . . Searches Triggered . | . . . Construction Impeded . | . . . Haulers Reinforced . | . . . Active Scanning Responses . | . . . Cargo Convoy Interrupts . | . . . Stealth | -11 -10 -10 --------- Run | Yrd Mat Min Distress Signals 6 | . 6 . Communications Jammed . | . . . Distress Signals . | . . . Times Spotted 33 | . 26 7 Peak Tracking Total 4 | . 4 3 Tactical Retreats 3 | . 3 . Traps | -11 -10 -10 ------- Run | Yrd Mat Min Traps Triggered 1 | . 1 . Indirectly . | . . . Trap Hack Attempts . | . . . Triggered . | . . . Disarmed . | . . . Reprogrammed . | . . . Reused . | . . . Traps Extracted . | . . . Installed . | . . . Triggered . | . . . Machines | -11 -10 -10 ---------- Run | Yrd Mat Min Machines Disabled . | . . . Max in Single Turn . | . . . Machines Repaired . | . . . Machines Dismantled . | . . . Machines Sabotaged . | . . . Overloaded Fab Kills . | . . . Hacking | -11 -10 -10 --------- Run | Yrd Mat Min Machines Accessed 8 | . 8 . Terminals 5 | . 5 . Fabricators . | . . . Repair Stations 1 | . 1 . Recycling Units 2 | . 2 . Scanalyzers . | . . . Garrison Access . | . . . Total Hacks 23 | . 23 . Successful 13 | . 13 . Failed 9 | . 9 . Catastrophic 1 | . 1 . Database Lockouts 1 | . 1 . Manual 19 | . 19 . Terminals 19 | . 19 . Fabricators . | . . . Repair Stations 2 | . 2 . Recycling Units 2 | . 2 . Scanalyzers . | . . . Garrison Access . | . . . Terminal Hacks 3 | . 3 . Robot Analysis 1 | . 1 . Emergency Access Points 1 | . 1 . Zone Layout 1 | . 1 . Fabricator Hacks . | . . . Repair Station Hacks 2 | . 2 . Scan Component 1 | . 1 . Repair 1 | . 1 . Recycling Unit Hacks . | . . . Scanalyzer . | . . . Garrison Access Hacks . | . . . Unauthorized Hacks 8 | . 8 . Terminals 6 | . 6 . Botnet 1 | . 1 . Skim 5 | . 5 . Fabricators . | . . . Repair Stations . | . . . Recycling Units 2 | . 2 . Tunnel 2 | . 2 . Scanalyzers . | . . . Garrison Access . | . . . Data Cores Recovered 1 | . 1 . Used . | . . . Hacking Detections 4 | . 4 . Full Trace Events . | . . . Feedback Events . | . . . Feedback Blocked . | . . . Robot Schematics Acquired . | . . . Robots Built . | . . . Authchips . | . . . Time . | . . . Total Robot Build Rating . | . . . Part Schematics Acquired . | . . . Parts Built . | . . . Authchips . | . . . Time . | . . . Total Part Build Rating . | . . . Part Studies Acquired . | . . . Parts Repaired 1 | . 1 . Time 26 | . 26 . Parts Recycled . | . . . Recycled Matter . | . . . Retrieved Matter . | . . . Retrieved Components . | . . . Parts Scanalyzed . | . . . Part Schematics Acquired . | . . . Parts Damaged . | . . . Bothacking | -11 -10 -10 ------------ Run | Yrd Mat Min Used RIF Installer . | . . . Robots Hacked . | . . . Non-combat . | . . . Combat . | . . . Robot Hacks Applied . | . . . Relay Couplers Released . | . . . Fabnet Peak Effective % . | . . . Robots Rewired . | . . . Allies Hacked . | . . . Hacks Repelled . | . . . Allies | -11 -10 -10 -------- Run | Yrd Mat Min Total Allies 2 | . . 2 Largest Group 2 | . . 2 Highest-Rated Group 46 | . . 46 Highest-Rated Ally 31 | . . 31 Total Orders . | . . . Ally Attacks 13 | . . 13 Total Damage 204 | . . 204 Kills 3 | . . 3 Allies Corrupted . | . . . Allies Melted . | . . . Intel | -11 -10 -10 ------- Run | Yrd Mat Min Active Infowar (turns) 1391 | 31 1360 . Seismic 1391 | 31 1360 . Robot Analysis Total 1 | . 1 . Derelict Logs Recovered 2 | . . 2 Drone Launches . | . . . Drone Recoveries . | . . . Exploration | -11 -10 -10 ------------- Run | Yrd Mat Min Turns Passed 2232 | 96 1740 396 Spaces Moved 1141 | 36 826 279 Core 3 | 3 . . Treads 197 | 33 164 . Legs 941 | . 662 279 Wheels . | . . . Hover . | . . . Flight . | . . . Fastest Speed 50 | 50 120 120 Average Speed 130 | 150 133 120 Slowest Speed 240 | 160 240 120 Overloaded Moves . | . . . Propulsion Burnouts . | . . . Robots Hopped . | . . . Potential Cave-ins . | . . . Cave-ins Triggered . | . . . Exploration Rate (%) 59 | 4 95 80 Regions Visited 2 Branch Regions 1 Pre-discovered Areas 4 | . 3 1 Known Exits Taken 1 | . 1 . Unknown Exits Taken 1 | 1 . . Scrap Searched 2 | . . 2 Spaces Dug . | . . . Terrain Destroyed . | . . . Melee . | . . . Projectile . | . . . AOE . | . . . Terrain Rammed . | . . . Walls Destroyed . | . . . Machines Disabled . | . . . Actions | -11 -10 -10 --------- Run | Yrd Mat Min Total 1709 | 58 1343 308 Wait 425 | . 416 9 Move 1139 | 35 825 279 Hop . | . . . Pick Up 13 | 7 6 . Fast Attach 12 | 7 2 3 Attach 1 | . 1 . Detach . | . . . Swap 9 | . 9 . Drop 12 | . 11 1 Fire 95 | 9 70 16 Melee . | . . . Ram . | . . . Kick 2 | . 2 . Crush 1 | . 1 . Escape Stasis . | . . . Rewire . | . . . Trap . | . . . Miscellaneous . | . . . Route ------- -11/Scrapyard -10/Materials (discovered 6 exits: *Mat x3 / *Min x2 / [*Sub]) -10/Mines (discovered 2 exits: *Mat x2) History --------- Turn | Location | Event 47 | -11/Scrapyard | Discovered new exit (range 15) 97 | -11/Scrapyard | Entered Materials 131 | -10/Materials | Central database locked down 131 | -10/Materials | Discovered new exit (range 13) 318 | -10/Materials | Build established: Mutant 532 | -10/Materials | Discovered new exit (range 9) 567 | -10/Materials | Discovered new exit (range 3) 597 | -10/Materials | Derelicts attacked the area 1106 | -10/Materials | Discovered new exit (range 3) 1112 | -10/Materials | Learned location of 2 exits from Subcaves 1173 | -10/Materials | Identified exit to Mines 1224 | -10/Materials | Identified exit to Materials 1266 | -10/Materials | Learned location of Subcaves (-10) 1324 | -10/Materials | Learned Storage trap positions 1358 | -10/Materials | Loaded intel: 28 trap records 1402 | -10/Materials | Learned Storage garrison access intel 1458 | -10/Materials | Loaded intel: 7 terminal locations 1542 | -10/Materials | Repaired Lgt. Treads 1782 | -10/Materials | Core integrity fell below 50% 1837 | -10/Materials | Entered Mines 1869 | -10/Mines | Met a Derelict bent on vengeance 1945 | -10/Mines | Learned location of Zion (-6) 2059 | -10/Mines | Found a hidden stash of uninstalled traps 2193 | -10/Mines | Assembled infested the area 2230 | -10/Mines | Core integrity fell below 20% 2233 | -10/Mines | Destroyed by D-53 Grenadier with Mini Grenade Launcher Last Messages --------------- 02130_ S-10 Pest destroyed. 02137_ Lgt. Cannon destroyed. 02145_ S-10 Pest suffers critical hit (Burn). 02146_ S-10 Pest heat damages Lgt. Ion Engine. 02148_ S-10 Pest critical meltdown. 02150_ Acquired 14 matter. 02158_ Acquired 17 matter. 02160_ Acquired Lgt. Assault Rifle. 02161_ Acquired 2 matter. 02187_ Searching scrap... 02187_ Found Lgt. Assault Rifle. 02187_ Found 41 Matter. 02188_ Acquired 8 matter. 02189_ Dropped Sml. Laser. 02190_ Acquired Lgt. Assault Rifle. 02193_ ALERT: Infestation in the mines, dispatching Demolisher response squad. 02196_ Acquired 10 matter. 02214_ OS-NWH(g) destroyed. 02219_ The unstable cave ceiling collapses. Map ----- +----------------------------------------------------+ | ?????????????????????????????????????????????????? | | ???????????????????????????????????############??? | | ???????????????????????????????????# #??? | | ???????????????????????????????????# """ #??? | | ???????????????#???????????????????# """ #??? | | ???????????????? ??????????????????# """ #??? | | ???????????????? ?